bitfinex-derivatives/quotes_SOLF0:USTF0_20240918
["timestamp","ask_amount","ask_price","bid_price","bid_amount"]
[1726664008072,13.3353,130.01,129.97,3.8463]
[1726664008264,13.3353,130.01,129.96,9.49]
[1726664008663,3.8456,130.0,129.97,3.8462]
[1726664009673,13.3354,130.01,129.98,3.846]
[1726664009974,12.3839,130.02,129.97,9.49]
[1726664010280,1.4547,130.02,129.99,9.49]
[1726664010970,1.4547,130.02,130.0,3.8454]
[1726664012973,10.9447,130.02,129.99,3.8457]
[1726664013162,9.49,130.01,129.96,13.38572462]
[1726664013777,9.49,130.01,129.98,3.846]
[1726664013963,9.49,130.0,129.98,3.846]
[1726664017076,5.2997,130.02,129.98,3.8459]
[1726664017274,9.49,130.01,129.98,3.8459]
[1726664017878,9.49,130.01,129.96,13.38572462]
[1726664018283,9.49,130.01,129.97,9.49]
[1726664019087,9.49,130.01,129.97,13.26503788]
[1726664020880,9.49,130.0,129.96,9.49]
[1726664021187,9.49,130.0,129.96,13.31477723]
[1726664021586,9.49,129.99,129.95,9.49]
[1726664024395,9.49,130.0,129.96,9.49]
[1726664026691,10.9581,130.01,129.96,9.49]
[1726664030787,10.9581,130.01,129.97,9.49]
[1726664033699,9.49,130.01,129.97,9.49]
[1726664034397,10.9447,130.02,129.98,9.49]
[1726664034601,9.49,130.03,129.99,9.49]
[1726664036793,9.49,130.02,129.98,3.85192862]
[1726664037700,9.49,130.01,129.97,9.49]
[1726664038407,9.49,130.01,129.97,13.32671037]
[1726664038898,9.49,130.0,129.96,9.49]
[1726664039198,9.49,130.0,129.96,13.32016768]
[1726664040892,2.8124,130.05,129.96,13.32016768]
[1726664041098,9.49,130.01,129.96,13.32016768]
[1726664047907,13.3353,130.01,129.96,13.32016768]
[1726664048404,13.3353,130.01,129.96,3.83016768]
[1726664048607,13.3353,130.01,129.98,3.8459]
[1726664050203,13.3353,130.01,129.99,3.8458]
[1726664052406,13.3353,130.01,129.98,3.846]
[1726664052801,13.3353,130.01,129.96,13.39350804]
[1726664053207,9.49,130.01,129.99,3.8457]
[1726664056712,9.49,130.01,130.0,3.8455]
[1726664057107,9.49,130.02,129.97,9.49]
[1726664057910,9.49,130.02,130.01,3.8452]
[1726664060712,2.8124,130.05,129.96,3.90350804]
[1726664060918,9.49,130.01,129.97,9.49]
[1726664061114,9.49,130.01,129.97,13.30939148]
[1726664061815,9.49,130.01,130.0,3.8455]
[1726664064723,2.8124,130.05,130.0,9.49]
[1726664064923,12.3024,130.05,130.0,9.49]
[1726664065121,12.3024,130.05,130.01,9.49]
[1726664065122,27.1116337,130.05,130.01,9.49]
[1726664065323,9.49,130.06,130.04,3.8443]
[1726664065514,9.49,130.07,130.03,9.49]
[1726664066425,9.49,130.07,129.98,4.4154]
[1726664066426,9.49,130.06,129.98,4.4154]
[1726664066624,9.49,130.06,130.01,9.49]
[1726664066827,9.49,130.06,130.04,3.8441]
[1726664067012,17.62621117,130.08,130.02,9.49]
[1726664067219,9.49,130.07,130.05,3.8439]
[1726664068122,9.49,130.06,129.98,4.4154]
[1726664068316,9.49,130.05,130.01,9.49]
[1726664068621,9.49,130.07,130.02,9.49]
[1726664069820,9.49,130.07,130.04,3.8442]
[1726664070526,9.49,130.07,130.05,3.844]
[1726664070729,17.62621117,130.08,130.02,9.49]
[1726664070921,9.49,130.06,130.02,9.49]
[1726664071538,25.69536307,130.07,130.05,3.844]
[1726664071725,13.3333,130.08,130.05,3.844]
[1726664072320,9.49,130.07,130.05,3.844]
[1726664075126,16.20537371,130.11,130.03,9.49]
[1726664075434,9.49,130.08,130.04,9.49]
[1726664075826,16.20537371,130.1,130.04,9.49]
[1726664076025,9.49,130.08,130.04,9.49]
[1726664076231,9.49,130.08,130.06,3.8436]
[1726664077227,9.49,130.08,130.03,9.49]
[1726664077841,9.49,130.08,130.06,3.8436]
[1726664078228,9.49,130.07,130.06,3.8436]
[1726664079432,9.49,130.07,130.05,3.8439]
[1726664082227,13.3335,130.07,130.04,7.60604001]
[1726664083238,13.3335,130.07,130.05,3.844]
[1726664083641,9.49,130.07,130.05,3.844]
[1726664084434,9.49,130.06,130.04,3.76184001]
[1726664084841,9.49,130.05,129.98,4.4154]
[1726664085043,9.49,130.05,130.03,3.8445]
[1726664085231,9.49,130.05,130.0,9.49]
[1726664085637,9.49,130.06,130.02,9.49]
[1726664086250,9.49,130.06,130.04,3.8441]
[1726664086541,13.3336,130.07,130.03,9.49]
[1726664086845,13.3335,130.07,130.03,9.49]
[1726664087044,9.49,130.07,130.03,9.49]
[1726664087439,9.49,130.07,130.05,3.8439]
[1726664089041,13.3333,130.08,130.05,3.8439]
[1726664089343,9.49,130.08,130.05,3.8439]
[1726664089545,9.49,130.08,130.06,3.8438]
[1726664091343,9.49,130.07,130.05,3.8439]
[1726664091741,9.49,130.06,130.05,3.8439]
[1726664091936,9.49,130.06,130.04,3.8441]
[1726664092649,9.49,130.06,130.05,3.844]
[1726664099049,13.3339,130.06,130.04,3.8442]
[1726664099442,13.3339,130.06,129.98,4.4154]
[1726664099646,9.49,130.04,129.98,4.4154]
[1726664099851,9.49,130.03,129.98,4.4154]
[1726664100051,9.49,130.03,129.98,13.9054]
[1726664100648,9.49,130.02,130.0,3.8454]
[1726664100854,9.49,130.02,129.98,13.9054]
[1726664101060,9.49,130.03,129.98,13.9054]
[1726664101358,3.8445,130.04,130.01,3.8451]
[1726664101653,9.49,130.03,130.01,3.8451]
[1726664103261,9.49,130.03,130.02,3.8449]
[1726664103445,9.49,130.04,130.02,3.8449]
[1726664104151,16.20816822,130.07,130.01,9.49]
[1726664104354,9.49,130.06,130.02,9.49]
[1726664105245,9.49,130.06,130.04,3.8442]
[1726664105653,3.034,130.08,130.04,3.8442]
[1726664105862,9.49,130.07,130.02,9.49]
[1726664106456,9.49,130.07,130.04,3.8442]
[1726664107263,9.49,130.07,130.05,3.844]
[1726664108262,9.49,130.07,130.04,3.8442]
[1726664108655,9.49,130.07,130.02,9.49]
[1726664110662,9.49,130.07,130.05,3.8439]
[1726664112462,9.49,130.06,130.04,3.8441]
[1726664113465,9.49,130.06,130.05,3.844]
[1726664114868,9.49,130.06,130.04,3.8442]
[1726664115482,9.49,130.05,129.98,4.4154]
[1726664115671,9.49,130.05,130.0,9.49]
[1726664115872,9.49,130.05,130.03,3.8445]
[1726664116073,9.49,130.06,130.01,9.49]
[1726664116573,9.49,130.06,130.04,3.8442]
[1726664117073,161.6419,130.16,130.04,3.8442]
[1726664117074,9.49,130.12,130.08,3.843]
[1726664117275,9.49,130.12,130.05,9.49]
[1726664117276,9.49,130.12,130.06,9.49]
[1726664117575,9.49,130.12,130.08,9.49]
[1726664118179,13.3321,130.12,130.09,3.8428]
[1726664118576,9.49,130.11,130.09,3.8428]
[1726664120171,9.49,130.13,130.08,9.49]
[1726664120580,25.69185934,130.13,130.1,3.8424]
[1726664120981,16.20185934,130.12,130.1,3.8424]
[1726664121274,9.49,130.12,130.09,3.8427]
[1726664122183,9.49,130.12,130.1,3.8425]
[1726664122483,88.91267488,130.25,130.1,9.49]
[1726664122672,9.49,130.14,130.09,9.49]
[1726664122868,9.49,130.13,130.12,3.8418]
[1726664127380,9.49,130.13,130.05,8.21902611]
[1726664127675,9.49,130.11,130.06,9.49]
[1726664128283,9.49,130.12,130.11,3.8422]
[1726664129977,9.49,130.13,130.12,3.8419]
[1726664132677,9.49,130.13,130.1,3.8423]
[1726664132881,9.49,130.11,130.06,9.49]
[1726664133376,9.49,130.11,130.1,3.8426]
[1726664133582,9.49,130.11,130.05,3.84952611]
[1726664133781,9.49,130.08,130.03,9.49]
[1726664133980,9.49,130.08,130.07,3.8435]
[1726664134186,9.49,130.09,130.07,3.8435]
[1726664134585,3.8424,130.11,130.08,3.8432]
[1726664134780,9.49,130.1,130.08,3.8432]
[1726664137485,9.49,130.11,130.09,3.8428]
[1726664138995,9.49,130.11,130.08,3.843]
[1726664139894,9.49,130.1,130.08,3.843]
[1726664140094,9.49,130.1,130.05,9.49]
[1726664140695,9.49,130.1,130.08,3.8429]
[1726664140895,9.49,130.1,130.05,9.49]
[1726664141088,9.49,130.1,130.06,3.8436]
[1726664141089,9.49,130.09,130.06,3.8436]
[1726664141392,9.49,130.07,130.02,1.415]
[1726664141695,9.49,130.05,130.03,3.8445]
[1726664141893,9.49,130.05,130.01,3.86174642]
[1726664142390,9.49,130.05,130.02,3.8448]
[1726664145095,21.28702411,130.08,130.04,3.8443]
[1726664145299,9.49,130.07,130.04,3.8443]
[1726664146791,13.3335,130.07,130.04,3.8443]
[1726664147398,9.49,130.06,130.04,3.8443]
[1726664148998,9.49,130.06,130.02,9.49]
[1726664148999,9.49,130.06,130.05,3.844]
[1726664149897,9.49,130.06,130.0,3.76558739]
[1726664150100,9.49,130.05,130.0,9.49]
[1726664150298,9.49,130.05,130.0,13.38178728]
[1726664151091,9.49,130.04,130.02,3.8448]
[1726664152002,9.49,130.03,130.0,7.73708728]
[1726664152301,9.49,130.03,130.0,3.8453]
[1726664152693,9.49,130.03,130.01,3.78358854]
[1726664153000,9.49,130.03,129.98,12.4938]
[1726664153001,9.49,130.03,129.98,10.9694]
[1726664153411,17.44714289,130.08,130.0,3.8453]
[1726664153605,9.49,130.03,129.99,3.86630885]
[1726664153898,9.49,130.03,130.01,3.8449]
[1726664155601,9.49,130.04,130.02,3.8449]
[1726664156314,9.49,130.05,130.02,3.8449]
[1726664160016,9.49,130.05,130.03,3.8446]
[1726664160902,5.2422,130.08,130.01,9.49]
[1726664161208,9.49,130.06,130.01,9.49]
[1726664161612,9.49,130.06,130.04,3.8442]
[1726664164123,9.49,130.06,130.05,3.844]
[1726664166617,9.49,130.07,130.06,3.8438]
[1726664168014,9.49,130.07,130.05,3.8439]
[1726664170719,9.49,130.06,130.05,3.8439]
[1726664181224,9.49,130.06,130.01,9.49]
[1726664181924,9.49,130.06,130.05,3.844]
[1726664182126,13.3332,130.08,130.05,3.844]
[1726664183223,13.3332,130.08,130.06,3.8437]
[1726664188425,9.49,130.08,130.06,3.8437]
[1726664190229,3.8425,130.11,130.07,3.8432]
[1726664190424,9.49,130.1,130.07,3.8432]
[1726664191222,3.8425,130.11,130.07,3.8432]
[1726664191425,9.49,130.11,130.08,3.8431]
[1726664192431,9.49,130.11,130.09,3.8429]
[1726664193832,9.49,130.11,130.08,3.843]
[1726664194233,1.4481,130.13,130.08,9.49]
[1726664194234,16.04299779,130.13,130.08,9.49]
[1726664194536,9.49,130.12,130.07,3.92072397]
[1726664194735,9.49,130.12,130.09,3.8427]
[1726664195534,9.49,130.12,130.1,3.8425]
[1726664198432,9.49,130.12,130.09,3.8427]
[1726664201924,9.49,130.12,130.1,3.8425]
[1726664207437,9.49,130.11,130.09,3.8427]
[1726664208032,9.49,130.11,130.05,9.49]
[1726664208433,9.49,130.11,130.06,9.49]
[1726664208637,9.49,130.11,130.06,13.34529463]
[1726664208834,9.49,130.11,130.06,3.85529463]
[1726664209035,9.49,130.11,130.06,9.49]
[1726664209244,9.49,130.11,130.06,13.32828435]
[1726664209437,13.3323,130.11,130.08,3.8429]
[1726664209634,13.3323,130.11,130.06,13.32828435]
[1726664210045,9.49,130.08,130.07,3.8433]
[1726664221249,13.3332,130.08,130.06,7.77534157]
[1726664221443,13.3332,130.08,130.06,3.8436]
[1726664222046,9.49,130.08,130.07,3.8435]
[1726664224149,3.8426,130.11,130.08,3.8432]
[1726664224347,9.49,130.1,130.08,3.8432]
[1726664227247,9.49,130.1,130.06,3.78751165]
[1726664227454,9.49,130.08,130.03,9.49]
[1726664227854,9.49,130.08,130.06,3.8437]
[1726664231160,9.49,130.09,130.04,9.49]
[1726664231661,26.97565589,130.1,130.08,3.8432]
[1726664231966,17.48565589,130.1,130.08,3.8432]
[1726664232154,17.48565589,130.1,130.06,13.29425592]
[1726664232155,9.49,130.1,130.06,13.29425592]
[1726664232761,9.49,130.1,130.08,3.8429]
[1726664233656,9.49,130.1,130.09,3.8429]
[1726664234459,9.49,130.11,130.1,3.8426]
[1726664234664,9.49,130.11,130.07,9.49]
[1726664235071,9.49,130.11,130.08,3.8431]
[1726664235266,25.53311115,130.11,130.08,3.8431]
[1726664235561,16.04311115,130.1,130.08,3.8431]
[1726664235862,9.49,130.1,130.08,3.8431]
[1726664237761,9.49,130.1,130.09,3.8429]
[1726664238365,9.49,130.1,130.08,3.843]
[1726664240758,3.8421,130.12,130.09,3.8429]
[1726664240959,16.0430067,130.13,130.08,9.49]
[1726664241171,16.0430067,130.12,130.08,9.49]
[1726664241470,16.0430067,130.11,130.1,3.8424]
[1726664241671,9.49,130.13,130.1,3.8424]
[1726664241968,9.49,130.12,130.11,3.8423]
[1726664242470,9.49,130.13,130.11,3.8423]
[1726664242667,25.5330067,130.13,130.12,3.842]
[1726664242969,9.49,130.13,130.12,3.842]
[1726664243166,25.5330067,130.13,130.12,3.842]
[1726664243361,9.49,130.14,130.12,3.842]
[1726664243770,13.3309,130.16,130.1,9.49]
[1726664243963,29.3739067,130.16,130.1,9.49]
[1726664244164,16.0430067,130.15,130.1,9.49]
[1726664244365,16.0430067,130.14,130.1,9.49]
[1726664244566,16.0430067,130.13,130.1,9.49]
[1726664244763,16.0430067,130.12,130.1,9.49]
[1726664244964,13.3309,130.16,130.1,9.49]
[1726664245169,13.3309,130.16,130.12,3.8418]
[1726664245561,3.8409,130.16,130.12,3.8418]
[1726664245762,9.49,130.16,130.13,3.8415]
[1726664246869,26.27466371,130.16,130.13,3.8415]
[1726664247073,16.78466371,130.15,130.13,3.8415]
[1726664247465,9.49,130.16,130.13,3.8415]
[1726664249470,9.49,130.17,130.14,3.8413]
[1726664249973,13.3305,130.17,130.14,3.8413]
[1726664250865,9.49,130.15,130.14,3.8413]
[1726664251575,9.49,130.15,130.1,9.49]
[1726664251771,9.49,130.13,130.07,4.4983]
[1726664252075,9.49,130.12,130.11,3.8421]
[1726664252276,9.49,130.12,130.07,13.9883]
[1726664252674,9.49,130.12,130.1,3.8424]
[1726664253877,9.49,130.11,130.09,3.8427]
[1726664254676,9.49,130.11,130.08,3.843]
[1726664255179,9.49,130.1,130.08,3.843]
[1726664255977,9.49,130.1,130.09,3.8429]
[1726664256273,13.3324,130.11,130.07,1.4982]
[1726664256475,13.3324,130.11,130.08,3.8429]
[1726664258577,9.49,130.11,130.09,3.8428]
[1726664258777,13.3321,130.12,130.09,3.8428]
[1726664259777,9.49,130.12,130.09,3.8428]
[1726664259973,9.49,130.12,130.1,3.8425]
[1726664260382,26.27466371,130.13,130.08,9.49]
[1726664260980,26.27466371,130.13,130.1,3.8423]
[1726664261180,26.27466371,130.13,130.08,9.49]
[1726664261578,26.27466371,130.13,130.1,3.8423]
[1726664261979,26.27466371,130.13,130.08,9.49]
[1726664262480,9.49,130.13,130.08,9.49]
[1726664262685,31.50096371,130.14,130.09,9.49]
[1726664262883,31.50096371,130.14,130.03,1.4443]
[1726664262884,16.78466371,130.14,130.12,9.49]
[1726664263083,16.78466371,130.13,130.12,13.42451565]
[1726664263286,9.49,130.17,130.14,3.8412]
[1726664264186,9.49,130.18,130.13,9.49]
[1726664264487,9.49,130.18,130.08,2.936]
[1726664264787,9.49,130.18,130.13,9.49]
[1726664265789,9.49,130.18,130.15,3.8409]
[1726664265980,9.49,130.17,130.15,3.8409]
[1726664266677,9.49,130.17,130.14,3.8412]
[1726664267473,9.49,130.17,130.15,3.8411]
[1726664267674,20.62479739,130.19,130.15,3.8411]
[1726664267986,9.49,130.17,130.15,3.8411]
[1726664269192,9.49,130.18,130.16,3.8408]
[1726664269492,9.49,130.18,130.14,9.49]
[1726664270385,9.49,130.18,130.15,3.9150256]
[1726664270587,26.27479739,130.19,130.15,13.4050256]
[1726664270992,26.27479739,130.19,130.16,3.8407]
[1726664271182,9.49,130.18,130.16,3.8407]
[1726664271583,9.49,130.17,130.16,3.8407]
[1726664271890,9.49,130.17,130.15,3.841]
[1726664273890,16.78479739,130.19,130.12,9.49]
[1726664274095,16.78479739,130.18,130.13,9.49]
[1726664274390,16.78479739,130.17,130.13,9.49]
[1726664274594,13.33,130.19,130.16,3.8408]
[1726664275592,30.11092662,130.19,130.16,3.8408]
[1726664275786,16.78092662,130.18,130.16,3.8408]
[1726664275988,30.11092662,130.19,130.16,3.8408]
[1726664276193,16.78092662,130.18,130.16,3.8408]
[1726664276695,16.78092662,130.17,130.16,3.8408]
[1726664276885,30.11092662,130.19,130.16,3.8408]
[1726664277091,16.78092662,130.18,130.16,3.8408]
[1726664277290,16.78092662,130.17,130.16,3.8408]
[1726664277681,16.78092662,130.17,130.13,9.49]
[1726664277886,9.49,130.18,130.15,3.8409]
[1726664279088,13.3303,130.18,130.15,3.8409]
[1726664281592,3.8406,130.17,130.14,3.8413]
[1726664281791,9.49,130.18,130.14,3.8413]
[1726664281994,26.27183824,130.18,130.14,3.8413]
[1726664282189,2.8705,130.2,130.14,3.8413]
[1726664282398,9.49,130.15,130.1,9.49]
[1726664282803,9.49,130.15,130.13,3.8416]
[1726664284094,9.49,130.15,130.08,6.74684532]
[1726664284095,13.3311,130.15,130.08,6.74684532]
[1726664284300,9.49,130.15,130.1,9.49]
[1726664284807,9.49,130.15,130.12,3.8418]
[1726664285603,13.3311,130.15,130.12,3.8418]
[1726664287095,13.3311,130.15,130.11,3.8421]
[1726664287290,13.3314,130.14,130.08,6.74684532]
[1726664287491,9.49,130.12,130.08,14.80354532]
[1726664287800,9.49,130.1,130.05,10.9286]
[1726664288206,1.4511,130.13,130.06,9.49]
[1726664288510,9.49,130.12,130.08,9.49]
[1726664288914,9.49,130.12,130.09,3.8427]
[1726664289208,9.49,130.12,130.08,9.49]
[1726664289401,9.49,130.12,130.1,3.8424]
[1726664290012,27.724671,130.13,130.08,9.49]
[1726664290212,27.724671,130.13,130.09,9.49]
[1726664290604,27.724671,130.13,130.1,3.8424]
[1726664291410,9.49,130.12,130.09,3.8427]
[1726664294722,13.332,130.12,130.09,3.8427]
[1726664295616,22.07976583,130.13,130.07,3.76510303]
[1726664295916,16.78686583,130.12,130.1,3.8426]
[1726664296121,10.9411,130.13,130.09,9.49]
[1726664296318,10.9411,130.13,130.11,3.8421]
[1726664296529,27.72746261,130.13,130.11,3.8421]
[1726664296822,10.9411,130.13,130.11,3.8421]
[1726664297509,27.7275918,130.13,130.11,3.8421]
[1726664297708,27.7275918,130.13,130.09,9.49]
[1726664297912,18.2375918,130.13,130.09,9.49]
[1726664298117,18.2392918,130.21,130.11,9.49]
[1726664298315,9.49,130.14,130.09,9.49]
[1726664299709,9.49,130.14,130.12,3.8419]
[1726664301123,13.3311,130.15,130.12,3.8419]
[1726664302032,9.49,130.15,130.12,3.8419]
[1726664302324,9.49,130.15,130.13,3.8416]
[1726664306116,9.49,130.15,130.12,3.8419]
[1726664306927,9.49,130.15,130.13,3.8416]
[1726664314227,9.49,130.16,130.14,3.8414]
[1726664314725,16.78433762,130.17,130.15,3.8411]
[1726664314920,9.49,130.18,130.15,3.8411]
[1726664316928,9.49,130.17,130.15,3.8411]
[1726664321332,9.49,130.17,130.16,3.8408]
[1726664321744,3.8401,130.19,130.16,3.8408]
[1726664321931,9.49,130.18,130.16,3.8408]
[1726664326840,13.3305,130.17,130.1,4.3274]
[1726664327039,9.49,130.15,130.1,2.8657]
[1726664327246,9.49,130.15,130.1,12.3557]
[1726664327440,9.49,130.15,130.14,3.8414]
[1726664328048,9.49,130.15,130.07,3.91845426]
[1726664328243,9.49,130.15,130.06,2.9927]
[1726664328444,9.49,130.15,130.1,9.49]
[1726664328751,9.49,130.15,130.13,3.8415]
[1726664329946,3.8409,130.16,130.13,3.8415]
[1726664330139,9.49,130.14,130.13,3.8415]
[1726664334049,5.2544,130.17,130.12,9.49]
[1726664334243,10.9037,130.17,130.12,9.49]
[1726664334746,14.7443,130.17,130.12,9.49]
[1726664335851,10.9037,130.17,130.15,3.841]
[1726664336050,9.49,130.16,130.11,9.49]
[1726664336442,9.49,130.16,130.14,3.8413]
[1726664337148,13.3308,130.16,130.14,3.8413]
[1726664338848,13.3311,130.15,130.06,2.9927]
[1726664339056,9.49,130.11,130.06,6.83373706]
[1726664339351,9.49,130.11,130.09,3.8427]
[1726664339648,9.49,130.11,130.06,5.32003706]
[1726664339953,9.49,130.11,130.08,3.8429]
[1726664340154,9.49,130.09,130.04,167.88084433]
[1726664340349,9.49,130.07,130.06,3.8436]
[1726664341256,9.49,130.07,130.05,3.8439]
[1726664342457,16.78115568,130.15,130.04,177.37084433]
[1726664342650,3.8425,130.11,130.05,9.49]
[1726664342849,13.3325,130.11,130.05,9.49]
[1726664343253,9.49,130.11,130.08,3.843]
[1726664343444,9.49,130.12,130.08,9.49]
[1726664344560,9.49,130.12,130.09,3.8427]
[1726664344857,9.49,130.12,130.08,9.49]
[1726664345453,9.49,130.12,130.09,3.8428]
[1726664347559,16.78115568,130.15,130.1,3.8424]
[1726664347761,9.49,130.11,130.1,3.8424]
[1726664348459,9.49,130.12,130.1,3.8424]
[1726664351956,9.49,130.12,130.08,9.49]
[1726664352255,9.49,130.13,130.08,9.49]
[1726664352460,9.49,130.13,130.09,9.49]
[1726664352752,9.49,130.13,130.11,3.8421]
[1726664356660,9.49,130.13,130.12,3.8417]
[1726664357556,9.49,130.13,130.11,3.8421]
[1726664357755,9.49,130.13,130.09,9.49]
[1726664358159,9.49,130.13,130.11,3.842]
[1726664358961,9.49,130.13,130.12,3.842]
[1726664359256,26.27435355,130.15,130.1,9.49]
[1726664359657,16.78435355,130.14,130.1,9.49]
[1726664359857,9.49,130.15,130.1,9.49]
[1726664360362,9.49,130.15,130.13,3.8416]
[1726664360763,9.49,130.15,130.12,3.8418]
[1726664361157,9.49,130.15,130.1,9.49]
[1726664361358,9.49,130.15,130.13,3.8417]
[1726664363064,16.78413788,130.16,130.1,9.49]
[1726664363264,9.49,130.15,130.1,9.49]
[1726664364363,9.49,130.15,130.13,3.8414]
[1726664369675,9.49,130.14,130.13,3.8414]
[1726664369869,9.49,130.14,130.12,3.8418]
[1726664371170,9.49,130.13,130.11,3.8421]
[1726664371371,9.49,130.12,130.07,9.49]
[1726664371766,2.9681,130.16,130.07,9.49]
[1726664371972,9.49,130.12,130.07,9.49]
[1726664372571,9.49,130.12,130.11,3.8423]
[1726664373290,9.49,130.13,130.12,3.8419]
[1726664379487,9.49,130.13,130.11,3.842]
[1726664379792,9.49,130.13,130.09,9.49]
[1726664379988,9.49,130.12,130.11,3.8421]
[1726664383788,9.49,130.13,130.12,3.8419]
[1726664385489,9.49,130.13,130.02,167.89252863]
[1726664385692,9.49,130.13,130.01,12.464]
[1726664385693,9.49,130.06,130.01,12.464]
[1726664385894,9.49,130.06,130.02,9.49]
[1726664386484,9.49,130.06,130.01,16.3601488]
[1726664386692,9.49,130.06,130.04,3.8443]
[1726664387192,16.78413788,130.1,130.05,9.49]
[1726664387193,26.27413788,130.1,130.05,9.49]
[1726664387693,9.49,130.1,130.05,9.49]
[1726664387995,13.3326,130.1,130.06,3.8436]
[1726664388200,9.49,130.11,130.06,9.49]
[1726664388401,13.3323,130.11,130.06,9.49]
[1726664388897,13.3323,130.11,130.07,3.8434]
[1726664393402,9.49,130.09,130.07,3.8434]
[1726664395203,9.49,130.1,130.08,3.8432]
[1726664398805,9.49,130.1,130.07,3.8433]
[1726664399604,9.49,130.1,130.08,3.8431]
[1726664400302,9.49,130.1,130.07,3.8433]
[1726664400499,9.49,130.08,130.03,9.49]
[1726664400899,9.49,130.08,130.06,3.8435]
[1726664401409,9.49,130.08,130.01,6.8701488]
[1726664401410,9.49,130.09,130.07,3.8434]
[1726664402103,1.4367,130.13,130.07,3.8434]
[1726664402298,9.49,130.1,130.07,3.8434]
[1726664402502,16.78729569,130.12,130.07,9.49]
[1726664402697,9.49,130.11,130.07,9.49]
[1726664402903,9.49,130.11,130.09,3.8427]
[1726664404515,9.49,130.1,130.01,6.8701488]
[1726664404706,9.49,130.08,130.03,9.49]
[1726664405109,9.49,130.06,130.05,3.844]
[1726664405302,9.49,130.06,130.01,6.8701488]
[1726664405506,9.49,130.05,130.01,16.3601488]
[1726664405807,1.4095,130.12,130.04,3.8443]
[1726664405808,9.49,130.06,130.04,3.8443]
[1726664406315,9.49,130.06,130.02,9.49]
[1726664407421,9.49,130.08,130.05,3.844]
[1726664408006,13.3333,130.08,130.05,3.844]
[1726664408205,13.3333,130.08,130.06,3.8437]
[1726664408610,9.49,130.08,130.06,3.8437]
[1726664411923,13.333,130.09,130.06,3.8437]
[1726664412325,13.333,130.09,130.04,9.49]
[1726664412326,9.49,130.09,130.07,3.8433]
[1726664412632,13.3327,130.1,130.07,3.8433]
[1726664413730,9.49,130.09,130.07,3.8433]
[1726664416630,9.49,130.08,130.03,9.49]
[1726664417025,9.49,130.07,130.04,3.8441]
[1726664417428,9.49,130.05,130.01,6.8701488]
[1726664417825,9.49,130.05,130.03,3.8445]
[1726664418318,9.49,130.05,130.01,6.8701488]
[1726664418520,9.49,130.03,130.0,1.5107]
[1726664418934,9.49,130.03,130.02,3.8449]
[1726664421626,9.49,130.06,130.02,9.49]
[1726664422030,9.49,130.06,130.04,3.8443]